[Event "IRI-ch Men Final 2015"]
[Site "Tehran"]
[Date "2016.01.20"]
[Round "1.1"]
[White "Firouzja, Alireza"]
[Black "Mosadeghpour, Masoud"]
[Result "1-0"]
[ECO "C24"]
[WhiteElo "2455"]
[BlackElo "2475"]
[PlyCount "63"]
[EventDate "2016.??.??"]
[EventCountry "IRI"]
[TimeControl "40/5400+30:1800+30"]

1. e4 {[%emt 0:00:00]} e5 {[%emt 0:00:00]} 2. Bc4 {[%emt 0:00:00]} Nf6 {
[%emt 0:00:00]} 3. d3 {[%emt 0:00:06]} c6 {[%emt 0:00:13]} 4. Nf3 {[%emt 0:00:
15]} d5 {[%emt 0:00:08]} 5. Bb3 {[%emt 0:00:06]} Bb4+ {[%emt 0:03:30]} 6. Bd2 {
[%emt 0:01:04]} Bxd2+ {[%emt 0:01:43]} 7. Qxd2 {[%emt 0:00:25]} dxe4 {[%emt 0:
15:16]} 8. Nxe5 {[%emt 0:01:07]} O-O {[%emt 0:00:31]} 9. dxe4 {[%emt 0:02:14]}
Qe7 {[%emt 0:01:49]} 10. Qf4 {[%emt 0:03:06]} Be6 {[%emt 0:29:07]} 11. Bxe6 {
[%emt 0:11:44]} Qxe6 {[%emt 0:00:22]} 12. f3 {[%emt 0:03:58]} c5 {[%emt 0:23:
47]} 13. Nc3 {[%emt 0:15:02]} Re8 {[%emt 0:02:56]} 14. Nd3 {[%emt 0:05:21]} c4
{[%emt 0:01:34]} 15. Nf2 {[%emt 0:00:24]} Qb6 {[%emt 0:00:03]} 16. Qc1 {
[%emt 0:03:05]} Nc6 {[%emt 0:06:25]} 17. O-O {[%emt 0:00:26]} Rad8 {[%emt 0:04:
29]} 18. Kh1 {[%emt 0:00:30]} Rd4 {[%emt 0:03:17]} 19. Nfd1 {[%emt 0:04:04]}
Red8 {[%emt 0:02:29]} 20. Ne3 {[%emt 0:00:55]} Qc5 {[%emt 0:00:01]} 21. Nf5 {
[%emt 0:03:33]} Rd2 {[%emt 0:02:18]} 22. Nd5 {[%emt 0:00:33]} R2xd5 {[%emt 0:
00:22]} 23. exd5 {[%emt 0:00:08]} Rxd5 {[%emt 0:00:05]} 24. Ng3 {[%emt 0:00:46]
} c3 {[%emt 0:01:03]} 25. bxc3 {[%emt 0:02:07]} Qxc3 {[%emt 0:00:19]} 26. Rd1 {
[%emt 0:01:24]} Nb4 {[%emt 0:00:41]} 27. Qf4 {[%emt 0:10:45]} h5 {[%emt 0:00:
30]} 28. Nf5 {[%emt 0:01:55]} Rxd1+ {[%emt 0:00:31]} 29. Rxd1 {[%emt 0:00:08]}
Qxc2 {[%emt 0:00:29]} 30. Rc1 {[%emt 0:00:16]} Qb2 {[%emt 0:00:25]} 31. Qg5 {
[%emt 0:00:09]} Ne8 {[%emt 0:00:33]} 32. Re1 {[%emt 0:00:05]} 1-0

[Event "IRI-ch Men Final 2015"]
[Site "Tehran"]
[Date "2016.01.20"]
[Round "1.2"]
[White "Gholami, Aryan"]
[Black "Noroozi, Omid"]
[Result "1-0"]
[ECO "B50"]
[WhiteElo "2398"]
[BlackElo "2399"]
[PlyCount "59"]
[EventDate "2016.??.??"]
[EventCountry "IRI"]
[TimeControl "40/5400+30:1800+30"]

1. e4 {[%emt 0:00:00]} c5 {[%emt 0:00:08]} 2. Nf3 {[%emt 0:01:00]} d6 {[%emt 0:
00:09]} 3. c3 {[%emt 0:00:00]} Nf6 {[%emt 0:00:12]} 4. Be2 {[%emt 0:00:00]} g6
{[%emt 0:00:27]} 5. O-O {[%emt 0:00:00]} Bg7 {[%emt 0:00:07]} 6. Bb5+ {[%emt 0:
01:17]} Bd7 {[%emt 0:09:59]} 7. Bxd7+ {[%emt 0:00:19]} Qxd7 {[%emt 0:02:17]} 8.
Re1 {[%emt 0:00:18]} Nc6 {[%emt 0:05:48]} 9. d4 {[%emt 0:00:37]} cxd4 {[%emt 0:
08:51]} 10. cxd4 {[%emt 0:00:08]} d5 {[%emt 0:00:05]} 11. e5 {[%emt 0:02:16]}
Ne4 {[%emt 0:00:38]} 12. Nc3 {[%emt 0:01:02]} Nxc3 {[%emt 0:04:17]} 13. bxc3 {
[%emt 0:00:07]} O-O {[%emt 0:01:30]} 14. h4 {[%emt 0:02:24]} Rfc8 {[%emt 0:24:
37]} 15. h5 {[%emt 0:09:19]} Nd8 {[%emt 0:01:53]} 16. Bd2 {[%emt 0:02:37]} Rc6
{[%emt 0:04:46]} 17. g3 {[%emt 0:08:20]} Qg4 {[%emt 0:04:29]} 18. hxg6 {
[%emt 0:02:58]} fxg6 {[%emt 0:08:27]} 19. Kg2 {[%emt 0:01:47]} Nf7 {[%emt 0:06:
15]} 20. Qb3 {[%emt 0:01:53]} Qd7 {[%emt 0:00:24] [#]} 21. e6 $1 {[%emt 0:01:
20]} Rxe6 {[%emt 0:00:07]} 22. Rxe6 {[%emt 0:00:06]} Qxe6 {[%emt 0:00:02]} 23.
Qxb7 {[%emt 0:00:10]} Rf8 {[%emt 0:00:23] Already in depseration mode, Black
plays for counterplay on the f-file. Unfortunately he will never have the time
to make use of it.} 24. Re1 {[%emt 0:08:27]} Qf5 {[%emt 0:02:57]} 25. Rxe7 {
[%emt 0:01:34]} Kh8 {[%emt 0:09:34]} 26. Qd7 {[%emt 0:01:42]} Qf6 {[%emt 0:00:
01]} 27. Bf4 {[%emt 0:07:36]} g5 {[%emt 0:04:21]} 28. Nxg5 {[%emt 0:02:21]}
Nxg5 {[%emt 0:00:02] [#]} 29. Rxg7 $1 {[%emt 0:00:10]} Ne6 {[%emt 0:00:03]} ({
If} 29... Qxg7 $2 30. Be5 Rf6 {is mate after} 31. Qc8+ Qg8 32. Bxf6#) 30. Rg4
1-0

[Event "IRI-ch Men Final 2015"]
[Site "Tehran"]
[Date "2016.01.20"]
[Round "1.5"]
[White "Javanbakht, Nima"]
[Black "Maghsoodloo, Parham"]
[Result "0-1"]
[ECO "D86"]
[WhiteElo "2422"]
[BlackElo "2450"]
[PlyCount "114"]
[EventDate "2016.??.??"]
[EventCountry "IRI"]
[TimeControl "40/5400+30:1800+30"]

1. d4 Nf6 2. c4 g6 3. Nc3 d5 4. cxd5 Nxd5 5. e4 Nxc3 6. bxc3 Bg7 7. Bc4 c5 8.
Ne2 O-O 9. O-O Nc6 10. Be3 b6 11. Qd2 Bb7 12. Rac1 Rc8 13. Rfd1 cxd4 14. cxd4
Qd7 15. Bb5 a6 16. Ba4 b5 17. Bb3 e6 18. h4 Qd8 19. Bg5 Qd6 20. h5 e5 21. d5
Nb8 22. h6 Bh8 23. Qa5 Nd7 24. Rxc8 Rxc8 25. Rc1 Bf6 26. Rxc8+ Bxc8 27. Bxf6
Nxf6 28. f3 Kf8 29. a4 Bd7 30. axb5 axb5 31. Kh2 Ne8 32. Qd2 Qc5 33. Nc1 Ke7
34. Nd3 Qd4 35. f4 Nf6 36. fxe5 Ng4+ 37. Kg3 Nxe5 38. Bc2 f6 39. Qb4+ Qxb4 40.
Nxb4 Kd6 41. Nd3 Nf7 42. Kf4 g5+ 43. Ke3 Nxh6 44. Kd4 Ng4 45. Bd1 Ne5 46. Nc5
Be8 47. Ne6 Bd7 48. Nc5 Bc8 49. Be2 b4 50. Na4 g4 51. Nb6 Bd7 52. g3 h5 53.
Nc4+ Nxc4 54. Kxc4 Bb5+ 55. Kxb5 b3 56. Kc4 b2 57. e5+ fxe5 {Kd4} 0-1

[Event "IRI-ch Men Final 2015"]
[Site "Tehran"]
[Date "2016.01.20"]
[Round "1.6"]
[White "Khamisi, S Jafar"]
[Black "Ghaem Maghami, Ehsan"]
[Result "0-1"]
[ECO "B90"]
[WhiteElo "2279"]
[BlackElo "2594"]
[PlyCount "66"]
[EventDate "2016.??.??"]
[EventCountry "IRI"]
[TimeControl "40/5400+30:1800+30"]

1. e4 {[%emt 0:00:47]} c5 {[%emt 0:01:53]} 2. Nf3 {[%emt 0:00:56]} d6 {[%emt 0:
01:57]} 3. d4 {[%emt 0:01:02]} cxd4 {[%emt 0:00:20]} 4. Nxd4 {[%emt 0:00:11]}
Nf6 {[%emt 0:00:08]} 5. Nc3 {[%emt 0:00:17]} a6 {[%emt 0:00:13]} 6. h3 {
[%emt 0:01:58]} e6 {[%emt 0:02:15]} 7. g4 {[%emt 0:00:12]} b5 {[%emt 0:00:09]}
8. Bg2 {[%emt 0:00:55]} Bb7 {[%emt 0:00:09]} 9. O-O {[%emt 0:06:38]} b4 {
[%emt 0:05:32]} 10. Nd5 {[%emt 0:01:03]} exd5 {[%emt 0:06:42]} 11. exd5 {
[%emt 0:00:09]} Be7 {[%emt 0:00:18]} 12. g5 {[%emt 0:05:43]} Nfd7 {[%emt 0:06:
04]} 13. Nc6 {[%emt 0:05:26]} Qc7 {[%emt 0:04:35]} 14. Nxe7 Kxe7 {[%emt 0:00:
10]} 15. Qd4 {[%emt 0:05:25]} Kf8 {[%emt 0:03:43]} 16. Bf4 {[%emt 0:03:03]} a5
{[%emt 0:06:53]} 17. Rae1 {[%emt 0:14:55]} Na6 {[%emt 0:05:43]} 18. Re2 {
[%emt 0:03:53]} Qb6 {[%emt 0:08:43]} 19. Qe4 {[%emt 0:43:37]} Kg8 {[%emt 0:06:
15]} 20. Qf5 {[%emt 0:01:40]} Ne5 {[%emt 0:05:00]} 21. Bxe5 {[%emt 0:00:33]}
dxe5 {[%emt 0:00:21]} 22. Rxe5 {[%emt 0:00:23]} Rf8 {[%emt 0:00:34]} 23. Rfe1 {
[%emt 0:01:13]} h6 {[%emt 0:00:45]} 24. h4 {[%emt 0:01:20]} hxg5 {[%emt 0:02:
30]} 25. hxg5 {[%emt 0:00:06]} Qd6 {[%emt 0:00:52]} 26. R1e3 {[%emt 0:00:54]}
Nc5 {[%emt 0:00:32]} 27. Kf1 {[%emt 0:00:18]} Bc8 {[%emt 0:06:27]} 28. Qf3 {
[%emt 0:00:28]} a4 {[%emt 0:04:46]} 29. Ke1 {[%emt 0:00:35]} b3 {[%emt 0:00:12]
} 30. axb3 {[%emt 0:00:16]} axb3 {[%emt 0:00:02]} 31. Kd2 {[%emt 0:00:28]} bxc2
{[%emt 0:00:38]} 32. Kxc2 {[%emt 0:00:11]} g6 {[%emt 0:00:22]} 33. Bf1 {
[%emt 0:01:14]} Bf5+ {[%emt 0:00:28]} 0-1

[Event "IRI-ch Men Final 2015"]
[Site "Tehran"]
[Date "2016.01.20"]
[Round "1.3"]
[White "Lorparizangeneh, Shahin"]
[Black "Darini, Pouria"]
[Result "1/2-1/2"]
[ECO "A35"]
[WhiteElo "2442"]
[BlackElo "2474"]
[PlyCount "63"]
[EventDate "2016.??.??"]
[EventCountry "IRI"]
[TimeControl "40/5400+30:1800+30"]

1. Nf3 {[%emt 0:00:03]} Nf6 {[%emt 0:00:00]} 2. c4 {[%emt 0:00:06]} c5 {
[%emt 0:00:13]} 3. Nc3 {[%emt 0:00:57]} Nc6 {[%emt 0:00:08]} 4. g3 {[%emt 0:00:
25]} d5 {[%emt 0:00:24]} 5. d4 {[%emt 0:03:20]} e6 {[%emt 0:07:59]} 6. cxd5 {
[%emt 0:03:47]} Nxd5 {[%emt 0:00:21]} 7. Bg2 {[%emt 0:01:14]} cxd4 {[%emt 0:04:
47]} 8. Nxd4 {[%emt 0:00:34]} Nxc3 {[%emt 0:00:12]} 9. bxc3 {[%emt 0:00:10]}
Nxd4 {[%emt 0:00:07]} 10. Qxd4 {[%emt 0:02:37]} Qxd4 {[%emt 0:01:51]} 11. cxd4
{[%emt 0:00:01]} Bb4+ {[%emt 0:00:15]} 12. Bd2 {[%emt 0:00:43]} Bxd2+ {[%emt 0:
00:09]} 13. Kxd2 {[%emt 0:00:01]} Ke7 {[%emt 0:11:21]} 14. Rhc1 {[%emt 0:29:49]
} Rd8 {[%emt 0:00:35]} 15. Rc7+ {[%emt 0:00:23]} Rd7 {[%emt 0:00:45]} 16. Rac1
{[%emt 0:01:22]} Kd8 {[%emt 0:00:08]} 17. Rxd7+ {[%emt 0:00:33]} Kxd7 {[%emt 0:
00:02]} 18. Kc3 {[%emt 0:00:23]} Kd8 {[%emt 0:24:19]} 19. Kb4 {[%emt 0:07:45]}
Bd7 {[%emt 0:05:25]} 20. Rc5 {[%emt 0:07:55]} Rb8 {[%emt 0:12:59]} 21. Ra5 {
[%emt 0:19:21]} a6 {[%emt 0:00:09]} 22. a4 {[%emt 0:00:44]} b5 {[%emt 0:04:25]}
23. Rxa6 {[%emt 0:01:16]} bxa4+ {[%emt 0:00:02]} 24. Kc5 {[%emt 0:00:29]} Ke7 {
[%emt 0:04:17]} 25. Ra7 {[%emt 0:00:46]} Rb2 {[%emt 0:06:06]} 26. Bf3 {[%emt 0:
00:52]} Rc2+ {[%emt 0:03:30]} 27. Kb4 {[%emt 0:00:37]} Kd6 {[%emt 0:01:02]} 28.
Ra6+ {[%emt 0:00:59]} Ke7 {[%emt 0:00:08]} 29. Ra7 {[%emt 0:00:57]} Kd6 {
[%emt 0:03:55]} 30. Ra6+ {[%emt 0:01:47]} Ke7 {[%emt 0:01:44]} 31. Ra7 Kd6 32.
Ra6+ {Ke5} 1/2-1/2

[Event "IRI-ch Men Final 2015"]
[Site "Tehran"]
[Date "2016.01.20"]
[Round "1.4"]
[White "Mousavi, Seyed Khalil"]
[Black "Bagheri, Maziar"]
[Result "1-0"]
[ECO "A05"]
[WhiteElo "2425"]
[BlackElo "2262"]
[PlyCount "109"]
[EventDate "2016.??.??"]
[EventCountry "IRI"]
[TimeControl "40/5400+30:1800+30"]

1. Nf3 {[%emt 0:00:00]} Nf6 {[%emt 0:00:00]} 2. c4 {[%emt 0:00:30]} e6 {
[%emt 0:00:48]} 3. g3 {[%emt 0:00:24]} d5 {[%emt 0:00:12]} 4. b3 {[%emt 0:00:
01]} Be7 {[%emt 0:00:14]} 5. Bg2 {[%emt 0:00:39]} O-O {[%emt 0:00:08]} 6. O-O {
[%emt 0:00:38]} c5 {[%emt 0:00:15]} 7. Bb2 {[%emt 0:00:52]} Nc6 {[%emt 0:00:10]
} 8. e3 {[%emt 0:00:07]} dxc4 {[%emt 0:06:55]} 9. bxc4 {[%emt 0:00:08]} Qb6 {
[%emt 0:01:12]} 10. Qc1 {[%emt 0:10:04]} Nb4 {[%emt 0:04:40]} 11. Ne1 {[%emt 0:
03:05]} Bd7 {[%emt 0:03:44]} 12. a3 {[%emt 0:03:05]} Nc6 {[%emt 0:00:26]} 13.
d3 {[%emt 0:01:42]} Rfd8 {[%emt 0:13:45]} 14. Nc3 {[%emt 0:06:29]} a6 {[%emt 0:
04:05]} 15. Rb1 {[%emt 0:01:13]} Qc7 {[%emt 0:00:03]} 16. Nf3 {[%emt 0:19:17]}
Rab8 {[%emt 0:07:29]} 17. Ba1 {[%emt 0:03:40]} Ng4 {[%emt 0:01:11]} 18. Ne4 {
[%emt 0:04:22]} Nce5 {[%emt 0:06:19]} 19. Qc3 {[%emt 0:04:59]} f6 {[%emt 0:00:
47]} 20. Nxe5 {[%emt 0:01:04]} Nxe5 {[%emt 0:00:25]} 21. Rfc1 {[%emt 0:01:20]}
Bc6 {[%emt 0:09:31]} 22. d4 {[%emt 0:02:49]} Nf7 {[%emt 0:01:00]} 23. Rd1 {
[%emt 0:07:42]} b6 {[%emt 0:03:39]} 24. Qb3 {[%emt 0:10:10]} cxd4 {[%emt 0:19:
39]} 25. exd4 {[%emt 0:02:19]} Qd7 {[%emt 0:04:47]} 26. Re1 b5 27. d5 {[%emt 0:
10:33]} exd5 {[%emt 0:02:05]} 28. cxd5 {[%emt 0:00:08]} Bxd5 {[%emt 0:00:38]}
29. Nxf6+ {[%emt 0:00:27]} gxf6 {[%emt 0:02:35]} 30. Bxd5 {[%emt 0:00:45]} Qxd5
{[%emt 0:00:02]} 31. Qxd5 {[%emt 0:00:12]} Rxd5 {[%emt 0:00:02]} 32. Rxe7 {
[%emt 0:00:07]} Rd6 {[%emt 0:02:21]} 33. Kg2 {[%emt 0:01:06]} Rc8 {[%emt 0:05:
26]} 34. Rbe1 {[%emt 0:01:45]} Rc2 {[%emt 0:01:15]} 35. R1e4 {[%emt 0:01:18]}
Rc4 {[%emt 0:01:05]} 36. Rxc4 {[%emt 0:01:10]} bxc4 {[%emt 0:00:02]} 37. Rc7 {
[%emt 0:00:02]} Nd8 {[%emt 0:00:30]} 38. Rxc4 {[%emt 0:00:49]} Nc6 {[%emt 0:00:
02]} 39. Ra4 {[%emt 0:00:19]} Ne7 {[%emt 0:00:02]} 40. Bd4 {[%emt 0:02:23]} Nd5
{[%emt 0:00:13]} 41. Rc4 {[%emt 0:31:17]} Kf7 {[%emt 0:30:11]} 42. Kf3 {
[%emt 0:01:19]} Ke6 {[%emt 0:00:01]} 43. h4 {[%emt 0:00:00]} Kd7 {[%emt 0:00:
00]} 44. Ke4 {[%emt 0:00:00]} Nc7 {[%emt 0:00:00]} 45. a4 {[%emt 0:00:00]} Re6+
{[%emt 0:00:00]} 46. Kd3 {[%emt 0:00:00]} Rd6 {[%emt 0:00:00]} 47. Kc2 {
[%emt 0:00:00]} Ne8 {[%emt 0:00:00]} 48. Bc3 {[%emt 0:00:00]} Nc7 {[%emt 0:00:
00]} 49. Rg4 {[%emt 0:00:00]} Rc6 {[%emt 0:00:00]} 50. Rg7+ {[%emt 0:00:00]}
Ke6 {[%emt 0:00:00]} 51. Kd3 {[%emt 0:00:00]} Rd6+ {[%emt 0:00:00]} 52. Bd4 {
[%emt 0:00:00]} Nd5 {[%emt 0:00:00]} 53. Rxh7 {[%emt 0:00:00]} Nb4+ {[%emt 0:
00:00]} 54. Kc4 {[%emt 0:00:00]} Nc2 {[%emt 0:00:00]} 55. Bc5 {[%emt 0:00:00]
Kd5+} 1-0

[Event "IRI-ch Men Final 2015"]
[Site "Tehran"]
[Date "2016.01.21"]
[Round "2.5"]
[White "Bagheri, Maziar"]
[Black "Javanbakht, Nima"]
[Result "0-1"]
[ECO "A56"]
[WhiteElo "2262"]
[BlackElo "2422"]
[PlyCount "66"]
[EventDate "2016.??.??"]
[EventCountry "IRI"]
[TimeControl "40/5400+30:1800+30"]

1. d4 Nf6 2. c4 c5 3. Nf3 cxd4 4. Nxd4 e5 5. Nc2 b6 6. Nc3 Bb7 7. Bg5 Na6 8.
Qd2 Be7 9. f3 O-O 10. e4 Nc5 11. Be3 Rc8 12. Be2 Ne6 13. Nb5 Ra8 14. b4 Nh5 15.
Nd6 Bxd6 16. Qxd6 Nhf4 17. Bf1 f5 18. exf5 Rxf5 19. O-O-O Nf8 20. c5 bxc5 21.
Bc4+ Kh8 22. Bxc5 Nxg2 23. Rhg1 Nh4 24. Rg3 Bxf3 25. Rdg1 Nfg6 26. Be3 Rc8 27.
Bb5 Rc7 28. Kb2 Qb8 29. Bc5 Rf6 30. Qd3 a6 31. Rxg6 Nxg6 32. Bd6 Rxd6 33. Qxf3
axb5 0-1

[Event "IRI-ch Men Final 2015"]
[Site "Tehran"]
[Date "2016.01.21"]
[Round "2.2"]
[White "Darini, Pouria"]
[Black "Gholami, Aryan"]
[Result "1-0"]
[ECO "E46"]
[WhiteElo "2474"]
[BlackElo "2398"]
[PlyCount "71"]
[EventDate "2016.??.??"]
[EventCountry "IRI"]
[TimeControl "40/5400+30:1800+30"]

1. d4 {[%emt 0:04:41]} Nf6 {[%emt 0:00:00]} 2. c4 {[%emt 0:00:06]} e6 {[%emt 0:
00:24]} 3. Nc3 {[%emt 0:00:07]} Bb4 {[%emt 0:00:15]} 4. e3 {[%emt 0:00:08]} O-O
{[%emt 0:02:44]} 5. Nge2 {[%emt 0:00:15]} d5 {[%emt 0:01:06]} 6. a3 {[%emt 0:
01:47]} Bd6 {[%emt 0:00:26]} 7. Ng3 {[%emt 0:02:46]} c6 {[%emt 0:04:10]} 8. Be2
{[%emt 0:11:15]} a6 {[%emt 0:05:18]} 9. c5 {[%emt 0:20:50]} Be7 {[%emt 0:11:01]
} 10. b4 {[%emt 0:03:07]} b6 {[%emt 0:02:05]} 11. Bd2 {[%emt 0:04:19]} Nfd7 {
[%emt 0:09:48]} 12. O-O {[%emt 0:02:28]} a5 {[%emt 0:01:18]} 13. e4 {[%emt 0:
06:00]} bxc5 {[%emt 0:04:37]} 14. bxc5 {[%emt 0:00:49]} Ba6 {[%emt 0:13:46]}
15. e5 {[%emt 0:03:59]} f5 {[%emt 0:01:15]} 16. Bxa6 {[%emt 0:10:44]} Nxa6 {
[%emt 0:00:13]} 17. Qa4 {[%emt 0:00:05]} Qc7 {[%emt 0:02:35]} 18. Nce2 {
[%emt 0:00:07]} Bd8 {[%emt 0:07:11]} 19. Rab1 {[%emt 0:05:06]} Qc8 {[%emt 0:02:
59]} 20. Rb2 {[%emt 0:05:46]} Ra7 {[%emt 0:02:21]} 21. Nf4 {[%emt 0:01:29]} Re8
{[%emt 0:00:20]} 22. Rfb1 {[%emt 0:01:15]} Qa8 {[%emt 0:00:45]} 23. Nge2 {
[%emt 0:01:44]} Kf7 {[%emt 0:08:01]} 24. Nd3 {[%emt 0:00:55]} Bc7 {[%emt 0:01:
36]} 25. Qd1 {[%emt 0:03:21]} Rb8 {[%emt 0:01:28]} 26. Nef4 {[%emt 0:01:41]}
Nf8 {[%emt 0:01:16]} 27. g4 {[%emt 0:00:46]} Rxb2 {[%emt 0:02:47]} 28. Rxb2 {
[%emt 0:00:05]} fxg4 {[%emt 0:01:09]} 29. Qxg4 {[%emt 0:00:07]} Qe8 {[%emt 0:
02:14]} 30. Nh5 {[%emt 0:02:57]} Ng6 {[%emt 0:00:12]} 31. Ndf4 {[%emt 0:01:26]}
Bd8 {[%emt 0:07:30]} 32. Nxg6 {[%emt 0:02:32]} hxg6 {[%emt 0:00:02]} 33. Nf4 {
[%emt 0:00:07]} Re7 {[%emt 0:03:09]} 34. Nxg6 {[%emt 0:00:23]} Rd7 {[%emt 0:00:
58]} 35. Rb3 {[%emt 0:00:11]} Kg8 {[%emt 0:01:50]} 36. Rh3 {[%emt 0:00:11]} 1-0

[Event "IRI-ch Men Final 2015"]
[Site "Tehran"]
[Date "2016.01.21"]
[Round "2.6"]
[White "Firouzja, Alireza"]
[Black "Mousavi, Seyed Khalil"]
[Result "1-0"]
[ECO "C15"]
[WhiteElo "2455"]
[BlackElo "2425"]
[PlyCount "43"]
[EventDate "2016.??.??"]
[EventCountry "IRI"]
[TimeControl "40/5400+30:1800+30"]

1. e4 {[%emt 0:00:00]} e6 {[%emt 0:00:01]} 2. d4 {[%emt 0:00:00]} d5 {[%emt 0:
00:02]} 3. Nc3 {[%emt 0:00:00]} Bb4 {[%emt 0:00:04]} 4. a3 {[%emt 0:00:02]}
Bxc3+ {[%emt 0:01:20]} 5. bxc3 {[%emt 0:00:08]} Ne7 {[%emt 0:07:02]} 6. Bd3 {
[%emt 0:00:39]} b6 {[%emt 0:04:34]} 7. c4 {[%emt 0:17:58]} Ba6 {[%emt 0:03:53]}
8. cxd5 {[%emt 0:04:19]} Bxd3 9. Qxd3 {[%emt 0:00:48]} exd5 {[%emt 0:03:45]}
10. c4 {[%emt 0:02:28]} c6 {[%emt 0:07:29]} 11. Nf3 {[%emt 0:05:13]} O-O {
[%emt 0:06:52]} 12. O-O {[%emt 0:01:43]} Qd6 {[%emt 0:16:06]} 13. a4 {[%emt 0:
08:29]} Re8 {[%emt 0:12:31]} 14. Ba3 {[%emt 0:03:47]} Qg6 {[%emt 0:08:55]} 15.
cxd5 {[%emt 0:02:38]} Nxd5 {[%emt 0:01:51]} 16. Ne5 {[%emt 0:00:40]} Nf4 {
[%emt 0:10:47]} 17. Qf3 {[%emt 0:00:17]} Qf6 {[%emt 0:01:39]} 18. Ng4 {[%emt 0:
00:41]} Qxd4 {[%emt 0:03:01]} 19. Qxf4 {[%emt 0:00:07]} Rxe4 {[%emt 0:02:56]}
20. Rae1 {[%emt 0:00:09]} f5 {[%emt 0:01:25]} 21. Qxf5 {[%emt 0:00:04]} Rxe1 {
[%emt 0:00:06]} 22. Qf8# {[%emt 0:00:04]} 1-0

[Event "IRI-ch Men Final 2015"]
[Site "Tehran"]
[Date "2016.01.21"]
[Round "2.3"]
[White "Ghaem Maghami, Ehsan"]
[Black "Lorparizangeneh, Shahin"]
[Result "1/2-1/2"]
[ECO "D91"]
[WhiteElo "2594"]
[BlackElo "2442"]
[PlyCount "81"]
[EventDate "2016.??.??"]
[EventCountry "IRI"]
[TimeControl "40/5400+30:1800+30"]

1. d4 Nf6 2. c4 g6 3. Nc3 d5 4. Nf3 Bg7 5. Bg5 Ne4 6. Bf4 Nxc3 7. bxc3 c5 8. e3
O-O 9. cxd5 cxd4 10. cxd4 Qxd5 11. Be2 Qa5+ 12. Qd2 Nc6 13. Qxa5 Nxa5 14. Kd2
Be6 15. Rhc1 Rac8 16. Bd3 Nc4+ 17. Ke2 b5 18. Nd2 Bd5 19. Be4 Bxe4 20. Nxe4
Rfd8 21. a4 b4 22. Nd2 e5 23. Rxc4 Rxc4 24. Nxc4 exf4 25. Rb1 Bf8 26. Kd3 fxe3
27. fxe3 f5 28. g3 Kg7 29. Rc1 Rc8 30. Rc2 Kf6 31. Na5 Rxc2 32. Kxc2 Ke6 33.
Nc6 Bh6 34. Nxa7 Bxe3 35. Nb5 Kd5 36. a5 Kc6 37. a6 Bg1 38. h3 g5 39. a7 Kb7
40. Nd6+ Kxa7 41. Nxf5 1/2-1/2

[Event "IRI-ch Men Final 2015"]
[Site "Tehran"]
[Date "2016.01.21"]
[Round "2.4"]
[White "Maghsoodloo, Parham"]
[Black "Khamisi, S Jafar"]
[Result "1-0"]
[ECO "A12"]
[WhiteElo "2450"]
[BlackElo "2279"]
[PlyCount "113"]
[EventDate "2016.??.??"]
[EventCountry "IRI"]
[TimeControl "40/5400+30:1800+30"]

1. c4 {[%emt 0:00:00]} c6 {[%emt 0:00:00]} 2. Nf3 {[%emt 0:00:01]} d5 {[%emt 0:
00:00]} 3. b3 {[%emt 0:00:04]} d4 {[%emt 0:05:27]} 4. Ba3 {[%emt 0:01:39]} Bg4
{[%emt 0:04:11]} 5. Qc2 {[%emt 0:04:42]} Bxf3 {[%emt 0:12:22]} 6. exf3 {
[%emt 0:04:23]} e5 {[%emt 0:02:05]} 7. Bb2 {[%emt 0:00:10]} Nf6 {[%emt 0:04:33]
} 8. g3 {[%emt 0:00:16]} Nbd7 {[%emt 0:00:56]} 9. Bg2 {[%emt 0:00:14]} Bd6 {
[%emt 0:02:18]} 10. O-O {[%emt 0:00:13]} Qb6 {[%emt 0:01:15]} 11. d3 {[%emt 0:
00:36]} h5 {[%emt 0:02:54]} 12. a3 {[%emt 0:00:39]} a5 {[%emt 0:00:07]} 13. Nd2
{[%emt 0:00:05]} O-O {[%emt 0:19:08]} 14. Rfe1 {[%emt 0:01:03]} g6 {[%emt 0:02:
17]} 15. Bh3 {[%emt 0:01:12]} c5 {[%emt 0:05:59]} 16. Bc1 {[%emt 0:01:18]} Qc7
{[%emt 0:05:27]} 17. Ne4 {[%emt 0:01:36]} Nxe4 {[%emt 0:00:42]} 18. fxe4 {
[%emt 0:00:24]} Kg7 {[%emt 0:05:55]} 19. Rf1 {[%emt 0:02:06]} h4 {[%emt 0:01:
09]} 20. Ra2 {[%emt 0:06:26]} Rh8 {[%emt 0:02:27]} 21. Bg2 {[%emt 0:04:54]} Rh7
{[%emt 0:03:37]} 22. Qd1 {[%emt 0:01:33]} Rah8 {[%emt 0:01:13]} 23. f4 {
[%emt 0:00:13]} hxg3 {[%emt 0:00:47]} 24. hxg3 {[%emt 0:00:13]} Qd8 {[%emt 0:
07:00]} 25. f5 {[%emt 0:02:45]} Be7 {[%emt 0:04:32]} 26. fxg6 {[%emt 0:03:32]}
fxg6 {[%emt 0:00:23]} 27. Qg4 {[%emt 0:00:11]} Rf8 {[%emt 0:04:41]} 28. Raf2 {
[%emt 0:00:36]} Rxf2 {[%emt 0:00:34]} 29. Rxf2 {[%emt 0:00:09]} Nf8 {[%emt 0:
00:36]} 30. Bh3 {[%emt 0:00:48]} Rh5 {[%emt 0:00:37]} 31. Kg2 {[%emt 0:02:11]}
Bf6 {[%emt 0:01:38]} 32. Bd2 {[%emt 0:00:24]} b6 {[%emt 0:00:36]} 33. b4 {
[%emt 0:00:13]} axb4 {[%emt 0:00:14]} 34. axb4 {[%emt 0:00:01]} Qc7 {[%emt 0:
00:26]} 35. b5 {[%emt 0:01:54]} Rh8 {[%emt 0:00:18]} 36. Bc1 {[%emt 0:03:08]}
Nh7 {[%emt 0:00:33]} 37. Qe6 {[%emt 0:00:40]} Ra8 {[%emt 0:01:00]} 38. Qc6 {
[%emt 0:00:36]} Ra7 {[%emt 0:00:19]} 39. Qxc7+ {[%emt 0:05:55]} Rxc7 {[%emt 0:
00:03]} 40. Ra2 {[%emt 0:00:18]} Bg5 {[%emt 0:00:52]} 41. Bxg5 {[%emt 0:30:27]}
Nxg5 {[%emt 0:30:17]} 42. Ra8 {[%emt 0:00:21]} Rf7 {[%emt 0:00:00]} 43. Bg4 {
[%emt 0:00:00]} Rb7 {[%emt 0:00:00]} 44. Kf2 {[%emt 0:00:00]} Rf7+ {[%emt 0:00:
00]} 45. Ke2 {[%emt 0:00:00]} Rf8 {[%emt 0:00:00]} 46. Ra7+ {[%emt 0:00:00]}
Rf7 {[%emt 0:00:00]} 47. Ra6 {[%emt 0:00:00]} Rb7 {[%emt 0:00:00]} 48. Ra8 {
[%emt 0:00:00]} Kh6 {[%emt 0:00:00]} 49. Re8 {[%emt 0:00:00]} Ra7 {[%emt 0:00:
00]} 50. Rb8 {[%emt 0:00:00]} Ra2+ {[%emt 0:00:20]} 51. Ke1 {[%emt 0:00:00]}
Rg2 {[%emt 0:03:31]} 52. Rxb6 {[%emt 0:00:00]} Rxg3 {[%emt 0:00:09]} 53. Be2 {
[%emt 0:00:00]} Re3 {[%emt 0:00:22]} 54. Kd2 {[%emt 0:00:00]} Nh3 {[%emt 0:00:
37]} 55. Rf6 {[%emt 0:00:00]} Kg7 {[%emt 0:02:19]} 56. Rf3 {[%emt 0:00:00]}
Rxf3 {[%emt 0:00:17]} 57. Bxf3 {[%emt 0:00:00]} 1-0

[Event "IRI-ch Men Final 2015"]
[Site "Tehran"]
[Date "2016.01.21"]
[Round "2.1"]
[White "Mosadeghpour, Masoud"]
[Black "Noroozi, Omid"]
[Result "1-0"]
[ECO "B96"]
[WhiteElo "2475"]
[BlackElo "2399"]
[PlyCount "50"]
[EventDate "2016.??.??"]
[EventCountry "IRI"]
[TimeControl "40/5400+30:1800+30"]

1. e4 c5 2. Nf3 d6 3. d4 cxd4 4. Nxd4 Nf6 5. Nc3 a6 6. Bg5 e6 7. f4 Nbd7 8. Qe2
Qc7 9. O-O-O h6 10. Bh4 Be7 11. g4 b5 12. Bg2 b4 13. e5 bxc3 14. Bxa8 dxe5 15.
Nc6 Qb6 16. b3 Ba3+ 17. Kb1 exf4 18. Bxf6 gxf6 19. Qc4 O-O 20. Qxf4 Re8 21. h4
Bf8 22. g5 Qc5 23. gxf6 Qa3 24. Qg3+ Kh8 25. Qxc3 Nb6 1-0